fUSD/lending_fUSD_20260511
["ID","MTS","AMOUNT","RATE_DAILY","PERIOD"]
[422028823,1778493031000,-2500.0,0.00016648,2]
[422028826,1778493031000,-150.0,0.00016727,2]
[422028827,1778493031000,-150.0,0.00016891,2]
[422028828,1778493031000,-150.0,0.00017055,2]
[422028820,1778493031000,-999.9964,0.0001648,2]
[422028825,1778493031000,-2500.0,0.00016648,2]
[422028824,1778493031000,-2500.0,0.00016648,2]
[422028821,1778493031000,-150.0,0.00016563,2]
[422028822,1778493031000,-2500.0,0.00016648,2]
[422028829,1778493031000,-2500.0,0.00017606,2]
[422028840,1778493031000,-150.0,0.00018351,2]
[422028830,1778493031000,-1130.51,0.00017838,2]
[422028842,1778493031000,-214.82098671,0.0001855,2]
[422028836,1778493031000,-813.42,0.00018151,2]
[422028864,1778493031000,-500.0,0.00018845,2]
[422028861,1778493031000,-612.77448273,0.00018845,2]
[422028863,1778493031000,-500.0,0.00018845,2]
[422028860,1778493031000,-500.0,0.00018845,2]
[422028854,1778493031000,-500.0,0.00018845,2]
[422028856,1778493031000,-500.0,0.00018845,2]
[422028848,1778493031000,-2052.52422116,0.00018831,2]
[422028849,1778493031000,-151.0,0.00018835,2]
[422028858,1778493031000,-500.0,0.00018845,2]
[422028852,1778493031000,-500.0,0.00018845,2]
[422028850,1778493031000,-2005.95557271,0.00018835,2]
[422028853,1778493031000,-500.0,0.00018845,2]
[422028846,1778493031000,-18584.3044,0.00018746,2]
[422028851,1778493031000,-500.0,0.00018845,2]
[422028843,1778493031000,-208.15897961,0.00018631,2]
[422028845,1778493031000,-26277.5453,0.00018746,2]
[422028844,1778493031000,-1001.77719487,0.00018745,2]
[422028847,1778493031000,-336.66176163,0.0001876,2]
[422028841,1778493031000,-151.0,0.0001841,2]
[422028883,1778493032000,-444.4383183,0.00018845,2]
[422028882,1778493032000,-500.0,0.00018845,2]
[422028871,1778493032000,-500.0,0.00018845,2]
[422028872,1778493032000,-500.0,0.00018845,2]
[422028865,1778493032000,-500.0,0.00018845,2]
[422028866,1778493032000,-500.0,0.00018845,2]
[422028867,1778493032000,-500.0,0.00018845,2]
[422028870,1778493032000,-170.78957392,0.00018845,2]
[422028868,1778493032000,-500.0,0.00018845,2]
[422028875,1778493032000,-500.0,0.00018845,2]
[422028869,1778493032000,-500.0,0.00018845,2]
[422028873,1778493032000,-500.0,0.00018845,2]
[422028887,1778493032000,-20556.74469323,0.00018846,2]
[422028877,1778493032000,-500.0,0.00018845,2]
[422028876,1778493032000,-500.0,0.00018845,2]
[422028881,1778493032000,-500.0,0.00018845,2]
[422028878,1778493032000,-467.62042088,0.00018845,2]
[422028880,1778493032000,-500.0,0.00018845,2]
[422028879,1778493032000,-500.0,0.00018845,2]
[422028884,1778493032000,-150.94231084,0.00018846,2]
[422028885,1778493032000,-2000.0,0.00018846,2]
[422028889,1778493032000,-197861.30599962,0.00018846,2]
[422028888,1778493032000,-198108.80527702,0.00018846,2]
[422028886,1778493032000,-14042.60136096,0.00018846,2]
[422028874,1778493032000,-500.0,0.00018845,2]
[422028892,1778493037000,-359.96230042,0.00018846,2]
[422028890,1778493037000,-1131.89117851,0.00018846,2]
[422028894,1778493037000,-2666.28575019,0.00018846,2]
[422028893,1778493037000,-1193.48095674,0.00018846,2]
[422028891,1778493037000,-26277.54531563,0.00018846,2]
[422028898,1778493038000,-2184.34232518,0.00018846,2]
[422028897,1778493038000,-866.12932493,0.00018846,2]
[422028896,1778493038000,-3248.29986574,0.00018846,2]
[422028895,1778493038000,-2008.31450221,0.00018846,2]
[422028907,1778493039000,-5898.52834962,0.00018846,2]
[422028908,1778493039000,-500.0,0.00018931,2]
[422028909,1778493039000,-253.65162203,0.00018931,2]
[422028913,1778493039000,-5450.52340948,0.00018932,2]
[422028911,1778493039000,-3063.0643976,0.00018932,2]
[422028912,1778493039000,-279.22623464,0.00018932,2]
[422028910,1778493039000,-501.90565383,0.00018931,2]
[422028947,1778493040000,-1130.51,0.00020068,2]
[422028941,1778493040000,-334.0,0.0002,2]
[422028943,1778493040000,-159.0,0.0002,2]
[422028953,1778493040000,-616.98798757,0.000207,13]
[422028945,1778493040000,-1828.0,0.0002,2]
[422028951,1778493040000,-238.42337392,0.000207,13]
[422028956,1778493040000,-427.70568074,0.000207,13]
[422028978,1778493040000,-202.03270957,0.00021805,2]
[422028959,1778493040000,-164.0,0.00021,2]
[422028961,1778493040000,-154.0,0.00021,2]
[422028964,1778493040000,-334.0,0.00021,2]
[422028974,1778493040000,-150.0,0.00021805,2]
[422028979,1778493040000,-168.88,0.0002185,2]
[422028939,1778493040000,-154.0,0.0002,2]
[422028976,1778493040000,-150.0,0.00021805,2]
[422028981,1778493040000,-5000.0,0.00021918,2]
[422028957,1778493040000,-6479.44127042,0.00020777,2]
[422028938,1778493040000,-154.0,0.0002,2]
[422028924,1778493040000,-624.0,0.00019748,2]
[422028930,1778493040000,-929.0,0.00019748,2]
[422028914,1778493040000,-1407.52319047,0.00018932,2]
[422028916,1778493040000,-43656.1978161,0.00018932,2]
[422028915,1778493040000,-510.63490455,0.00018932,2]
[422028917,1778493040000,-1182.1573557,0.00018932,2]
[422028918,1778493040000,-500.0,0.00018945,2]
[422028919,1778493040000,-152.96,0.00019,5]
[422028965,1778493040000,-173.57263369,0.00021,2]
[422028949,1778493040000,-151.0,0.00020381,2]
[422028921,1778493040000,-167.1640038,0.0001905,2]
[422028934,1778493040000,-178.54052936,0.00019831,2]
[422028920,1778493040000,-1016.0,0.00019,2]
[422028936,1778493040000,-319.73881309,0.000199,2]
[422028926,1778493040000,-926.0,0.00019748,2]
[422028923,1778493040000,-500.0,0.00019178,2]
[422028928,1778493040000,-1815.36,0.00019748,2]
[422028922,1778493040000,-500.0,0.00019178,2]
[422028932,1778493040000,-3654.85,0.00019748,2]
[422028983,1778493040000,-2052.52422115,0.00021984,2]
[422029043,1778493040000,-169.64,0.00025205,7]
[422028968,1778493040000,-255.1888051,0.00021238,21]
[422029028,1778493040000,-151.0,0.00024324,2]
[422029019,1778493040000,-334.0,0.00023,2]
[422029021,1778493040000,-536.0,0.00023396,7]
[422029034,1778493040000,-197.72,0.00024658,2]
[422029032,1778493040000,-1130.51,0.00024528,2]
[422029035,1778493040000,-169.49,0.00024658,2]
[422029036,1778493040000,-169.64,0.00024658,2]
[422029030,1778493040000,-509.0,0.00024397,2]
[422029038,1778493040000,-344.0,0.00025,2]
[422029042,1778493040000,-169.49,0.00025205,7]
[422029045,1778493040000,-3628.0,0.00025748,2]
[422029046,1778493040000,-509.0,0.00025787,3]
[422029048,1778493040000,-169.49,0.00026027,2]
[422029047,1778493040000,-263.63,0.00026027,2]
[422029049,1778493040000,-169.64,0.00026027,2]
[422028970,1778493040000,-152.0,0.00021249,5]
[422029040,1778493040000,-2052.52422115,0.00025136,2]
[422029017,1778493040000,-3628.0,0.00022748,2]
[422029044,1778493040000,-1105.50048072,0.00025622,2]
[422029026,1778493040000,-334.0,0.00024,2]
[422029015,1778493040000,-917.0,0.00022748,2]
[422028972,1778493040000,-201.75301911,0.00021341,2]
[422028985,1778493040000,-334.0,0.00022,2]
[422028966,1778493040000,-164.12,0.00021162,2]
[422028989,1778493040000,-1578.740996,0.00022298,2]
[422028992,1778493040000,-1578.740996,0.00022298,2]
[422029000,1778493040000,-151.0,0.00022298,2]
[422029004,1778493040000,-1130.51,0.00022298,2]
[422028987,1778493040000,-151.0,0.00022298,2]
[422028993,1778493040000,-1578.740996,0.00022298,2]
[422029002,1778493040000,-151.0,0.00022298,2]
[422028995,1778493040000,-1578.740996,0.00022298,2]
[422028997,1778493040000,-151.0,0.00022298,2]
[422029008,1778493040000,-154.0,0.00022597,5]
[422029011,1778493040000,-152.0,0.00022656,2]
[422029013,1778493040000,-548.965,0.00022748,2]
[422029006,1778493040000,-151.0,0.00022353,2]
[422029023,1778493040000,-164.12,0.00023513,2]
[422029086,1778493041000,-150.0,0.00027475,7]
[422029083,1778493041000,-2486.01,0.00027397,10]
[422029082,1778493041000,-151.0,0.00027397,2]
[422029090,1778493041000,-398.979293,0.00027671,7]
[422029091,1778493041000,-398.979293,0.00027671,7]
[422029080,1778493041000,-151.0,0.00027397,2]
[422029089,1778493041000,-398.979293,0.00027671,7]
[422029081,1778493041000,-151.0,0.00027397,2]
[422029087,1778493041000,-2006.9818163,0.00027486,5]
[422029076,1778493041000,-509.0,0.00027177,4]
[422029085,1778493041000,-214.82098671,0.000274,10]
[422029084,1778493041000,-3842.61,0.00027397,10]
[422029095,1778493041000,-150.0,0.00027851,7]
[422029092,1778493041000,-150.0,0.00027701,7]
[422029096,1778493041000,-164.12,0.00028216,120]
[422029094,1778493041000,-152.0,0.00027849,7]
[422029093,1778493041000,-500.0,0.000278,7]
[422029098,1778493041000,-151.0,0.00028267,2]
[422029099,1778493041000,-2052.52422115,0.00028289,2]
[422029097,1778493041000,-150.0,0.00028228,7]
[422029101,1778493041000,-600.0,0.00028356,60]
[422029102,1778493041000,-500.0,0.00028356,60]
[422029100,1778493041000,-150.0,0.00028303,7]
[422029114,1778493041000,-500.0,0.00029,7]
[422029078,1778493041000,-197.73,0.00027397,7]
[422029088,1778493041000,-398.979293,0.00027671,7]
[422029077,1778493041000,-156.0,0.00027397,5]
[422029059,1778493041000,-169.49,0.00026392,30]
[422029079,1778493041000,-2486.01,0.00027397,10]
[422029050,1778493041000,-152.0,0.0002617,2]
[422029055,1778493041000,-169.64,0.00026209,7]
[422029051,1778493041000,-979.45,0.00026171,12]
[422029054,1778493041000,-169.49,0.00026209,7]
[422029053,1778493041000,-292.9459449,0.00026196,21]
[422029052,1778493041000,-165.934,0.00026171,12]
[422029057,1778493041000,-151.0,0.00026286,2]
[422029058,1778493041000,-151.0,0.00026296,2]
[422029104,1778493041000,-152.0,0.00028391,30]
[422029056,1778493041000,-151.0,0.00026286,2]
[422029061,1778493041000,-1416.0,0.00026528,2]
[422029060,1778493041000,-169.64,0.00026392,30]
[422029062,1778493041000,-286.56601948,0.00026529,2]
[422029064,1778493041000,-169.66,0.00026575,2]
[422029065,1778493041000,-1130.51,0.00026758,2]
[422029066,1778493041000,-195.2972966,0.00026839,21]
[422029063,1778493041000,-169.51,0.00026575,2]
[422029067,1778493041000,-155.2127771,0.00026997,7]
[422029068,1778493041000,-150.0,0.00027,2]
[422029071,1778493041000,-150.0,0.00027099,4]
[422029069,1778493041000,-214.82098671,0.00027,3]
[422029072,1778493041000,-150.0,0.00027099,4]
[422029070,1778493041000,-150.0,0.00027099,4]
[422029074,1778493041000,-150.0,0.00027099,4]
[422029073,1778493041000,-150.0,0.00027099,4]
[422029075,1778493041000,-150.0,0.00027099,4]
[422029106,1778493041000,-151.0,0.000285,7]
[422029117,1778493041000,-200.0,0.0002909,20]
[422029107,1778493041000,-502.0,0.00028548,2]
[422029132,1778493041000,-509.0,0.00029958,7]
[422029137,1778493041000,-151.0,0.0003,7]
[422029134,1778493041000,-600.0,0.0003,60]
[422029103,1778493041000,-500.0,0.00028356,60]
[422029143,1778493041000,-180.903837,0.0003,7]
[422029144,1778493041000,-151.0,0.0003,7]
[422029146,1778493041000,-151.0,0.0003,7]
[422029142,1778493041000,-151.0,0.0003,7]
[422029145,1778493041000,-151.0,0.0003,7]
[422029148,1778493041000,-151.0,0.0003,7]
[422029147,1778493041000,-151.0,0.0003,7]
[422029149,1778493041000,-151.0,0.0003,7]
[422029151,1778493041000,-330.28016161,0.0003003,2]
[422029150,1778493041000,-173.472548,0.0003,7]
[422029152,1778493041000,-189.169142,0.0003003,7]
[422029154,1778493041000,-189.169142,0.0003003,7]
[422029156,1778493041000,-325.185673,0.0003003,7]
[422029155,1778493041000,-189.169142,0.0003003,7]
[422029158,1778493041000,-325.185673,0.0003003,7]
[422029153,1778493041000,-189.169142,0.0003003,7]
[422029159,1778493041000,-325.185673,0.0003003,7]
[422029157,1778493041000,-325.185673,0.0003003,7]
[422029161,1778493041000,-398.979293,0.0003003,7]
[422029162,1778493041000,-398.979293,0.0003003,7]
[422029160,1778493041000,-398.979293,0.0003003,7]
[422029128,1778493041000,-150.0,0.00029507,7]
[422029131,1778493041000,-152.0,0.00029934,7]
[422029135,1778493041000,-1052.14230173,0.0003,2]
[422029129,1778493041000,-150.0,0.00029733,7]
[422029112,1778493041000,-150.0,0.0002898,7]
[422029105,1778493041000,-381.217112,0.000285,2]
[422029108,1778493041000,-509.0,0.00028567,6]
[422029110,1778493041000,-3628.0,0.00028748,2]
[422029113,1778493041000,-500.0,0.00029,7]
[422029109,1778493041000,-150.0,0.00028604,7]
[422029130,1778493041000,-152.0,0.00029886,7]
[422029116,1778493041000,-512.56,0.00029,7]
[422029126,1778493041000,-151.0,0.00029178,7]
[422029119,1778493041000,-200.0,0.0002909,20]
[422029118,1778493041000,-200.0,0.0002909,7]
[422029120,1778493041000,-500.0,0.00029099,120]
[422029111,1778493041000,-150.0,0.00028905,7]
[422029123,1778493041000,-9886.07406174,0.000291,2]
[422029136,1778493041000,-500.0,0.0003,60]
[422029121,1778493041000,-500.0,0.00029099,120]
[422029139,1778493041000,-151.0,0.0003,7]
[422029138,1778493041000,-151.0,0.0003,7]
[422029141,1778493041000,-151.0,0.0003,7]
[422029133,1778493041000,-152.0,0.00029999,7]
[422029140,1778493041000,-650.83633,0.0003,2]
[422029127,1778493041000,-150.0,0.00029357,7]
[422029122,1778493041000,-500.0,0.00029099,2]
[422029124,1778493041000,-214.82098671,0.000291,7]
[422029115,1778493041000,-500.0,0.00029,7]
[422029125,1778493041000,-600.0,0.00029178,60]
[422029167,1778493042000,-1578.740996,0.0003003,7]
[422029170,1778493042000,-151.0,0.0003003,7]
[422029173,1778493042000,-151.0,0.0003003,7]
[422029166,1778493042000,-1578.740996,0.0003003,7]
[422029168,1778493042000,-151.0,0.0003003,7]
[422029176,1778493042000,-152.0,0.00030047,7]
[422029165,1778493042000,-1578.740996,0.0003003,7]
[422029164,1778493042000,-1578.740996,0.0003003,7]
[422029171,1778493042000,-151.0,0.0003003,7]
[422029175,1778493042000,-5000.0,0.0003003,2]
[422029163,1778493042000,-398.979293,0.0003003,7]
[422029174,1778493042000,-235.89718488,0.0003003,2]
[422029169,1778493042000,-151.0,0.0003003,7]
[422029172,1778493042000,-151.0,0.0003003,7]
[422029184,1778493042000,-155.86383987,0.0003012,2]
[422029177,1778493042000,-152.0,0.00030047,7]
[422029190,1778493042000,-2075.70576896,0.0003013,7]
[422029192,1778493042000,-847.33266475,0.0003013,7]
[422029191,1778493042000,-335.38,0.0003013,7]
[422029185,1778493042000,-191.50379649,0.00030129,120]
[422029186,1778493042000,-500.0,0.00030129,120]
[422029187,1778493042000,-500.0,0.00030129,2]
[422029178,1778493042000,-1908.93476382,0.000301,120]
[422029183,1778493042000,-150.0,0.0003011,7]
[422029180,1778493042000,-156.9664646,0.0003011,7]
[422029189,1778493042000,-220055.86858155,0.0003013,7]
[422029182,1778493042000,-150.0,0.0003011,7]
[422029188,1778493042000,-250.0,0.00030129,30]
[422029179,1778493042000,-180.8965643,0.0003011,7]
[422029181,1778493042000,-150.0,0.0003011,7]
[422029206,1778493043000,-169.59,0.00026027,2]
[422029207,1778493043000,-169.59,0.00026209,7]
[422029208,1778493043000,-169.59,0.00026392,30]
[422029209,1778493043000,-911.42762096,0.0003002,10]
[422029210,1778493043000,-2290.75237904,0.0003002,10]
[422029212,1778493043000,-6827.0276167,0.0003013,7]
[422029211,1778493043000,-264.33288905,0.0003003,2]
[422029245,1778493045000,-188.299,0.00022748,2]
[422029244,1778493045000,-417.0,0.00019748,2]
[422029246,1778493045000,-169.59,0.00024658,2]
[422029249,1778493045000,-169.59,0.00026301,2]
[422029248,1778493045000,-169.59,0.00025753,30]
[422029247,1778493045000,-169.59,0.00025205,7]
[422029254,1778493045000,-771.1628416,0.000291,2]
[422029251,1778493045000,-169.59,0.00026849,7]
[422029252,1778493045000,-169.62,0.00027397,30]
[422029253,1778493045000,-1653.07145774,0.000291,2]
[422029256,1778493045000,-18160.70437644,0.0003013,7]
[422029257,1778493045000,-5435.35341215,0.0003013,7]
[422029250,1778493045000,-169.61,0.00026575,2]
[422029255,1778493045000,-4166.48174182,0.000291,2]
[422029259,1778493046000,-2786.293386,0.0003013,7]
[422029258,1778493046000,-5334.68776504,0.0003013,7]
[422029290,1778493062000,2500.0,0.00025912,120]
[422029289,1778493062000,2500.0,0.00024528,120]
[422029291,1778493068000,4090.207265,7.945e-05,2]
[422029292,1778493101000,185.75,0.00027397,120]
[422029293,1778493321000,215.36,0.00012793,2]
[422029295,1778493532000,-152.0,0.00014672,7]
[422029294,1778493532000,-152.0,0.00014672,7]
[422029297,1778493548000,-152.0,0.00014702,7]
[422029296,1778493548000,-152.0,0.00014702,7]
[422029299,1778493551000,152.0,0.00014665,7]
[422029298,1778493551000,152.0,0.00014665,7]
[422029301,1778493787000,898.823837,7.945e-05,2]
[422029302,1778493881000,26236.90956473,0.00012,2]
[422029303,1778493912000,164.13,0.00026595,120]
[422029304,1778494033000,-1042.79456982,0.00014999,2]
[422029311,1778494231000,-56363.0016919,0.00015,2]
[422029312,1778494231000,-27149.13668974,0.00015,2]
[422029310,1778494231000,-1220.24567712,0.00015,2]
[422029315,1778494231000,-150.0,0.00015149,2]
[422029314,1778494231000,-3261.54597275,0.00015,2]
[422029313,1778494231000,-10946.97710478,0.00015,2]
[422029335,1778494232000,-150.0,0.00016974,2]
[422029354,1778494232000,-150.0,0.00017802,2]
[422029352,1778494232000,-164.13,0.0001773,2]
[422029350,1778494232000,-150.0,0.00017699,2]
[422029346,1778494232000,-150.0,0.00017595,2]
[422029345,1778494232000,-150.0,0.00017388,2]
[422029338,1778494232000,-188.8,0.00017169,2]
[422029343,1778494232000,-150.0,0.00017388,2]
[422029336,1778494232000,-150.0,0.00017078,2]
[422029348,1778494232000,-150.0,0.00017699,2]
[422029340,1778494232000,-150.0,0.00017181,2]
[422029331,1778494232000,-150.0,0.00016767,2]
[422029322,1778494232000,-2500.0,0.00016499,2]
[422029333,1778494232000,-150.0,0.00016767,2]
[422029329,1778494232000,-150.0,0.00016767,2]
[422029319,1778494232000,-2171.10592336,0.00016499,2]
[422029321,1778494232000,-2500.0,0.00016499,2]
[422029323,1778494232000,-163.33,0.00016767,2]
[422029320,1778494232000,-2500.0,0.00016499,2]
[422029318,1778494232000,-2500.0,0.00016499,2]
[422029325,1778494232000,-150.0,0.00016767,2]
[422029324,1778494232000,-150.0,0.00016767,2]
[422029317,1778494232000,-231.3,0.00016438,2]
[422029327,1778494232000,-150.0,0.00016767,2]
[422029316,1778494232000,-152.0,0.00016287,2]
[422029368,1778494232000,-150.0,0.00018423,2]
[422029358,1778494232000,-150.0,0.00018009,2]
[422029388,1778494232000,-167.10607202,0.00018545,2]
[422029356,1778494232000,-500.0,0.00017953,2]
[422029366,1778494232000,-231.3,0.0001841,2]
[422029395,1778494232000,-545.3745777,0.00018545,2]
[422029396,1778494232000,-58.51308595,0.00018545,2]
[422029397,1778494232000,-395.64172341,0.00018546,2]
[422029394,1778494232000,-500.0,0.00018545,2]
[422029392,1778494232000,-194.190851,0.00018545,2]
[422029393,1778494232000,-305.809149,0.00018545,2]
[422029391,1778494232000,-194.02089378,0.00018545,2]
[422029390,1778494232000,-156.36920599,0.00018545,2]
[422029389,1778494232000,-542.73106398,0.00018545,2]
[422029385,1778494232000,-500.0,0.00018545,2]
[422029386,1778494232000,-500.0,0.00018545,2]
[422029384,1778494232000,-500.0,0.00018545,2]
[422029387,1778494232000,-235.72274635,0.00018545,2]
[422029382,1778494232000,-500.0,0.00018545,2]
[422029373,1778494232000,-309.45070294,0.000185,7]
[422029362,1778494232000,-150.0,0.00018216,2]
[422029364,1778494232000,-150.0,0.0001832,2]
[422029383,1778494232000,-500.0,0.00018545,2]
[422029370,1778494232000,-2285.94778533,0.00018448,2]
[422029371,1778494232000,-1795.95869355,0.00018455,2]
[422029360,1778494232000,-150.0,0.00018009,2]
[422029375,1778494232000,-569.42758982,0.000185,7]
[422029378,1778494232000,-500.0,0.00018545,2]
[422029381,1778494232000,-500.0,0.00018545,2]
[422029380,1778494232000,-341.66771319,0.00018545,2]
[422029376,1778494232000,-214.82098671,0.00018535,2]
[422029401,1778494238000,-191.50379649,0.00018546,2]
[422029405,1778494238000,-500.0,0.00018546,2]
[422029400,1778494238000,-104.35827659,0.00018546,2]
[422029403,1778494238000,-20.76299513,0.00018546,2]
[422029402,1778494238000,-500.0,0.00018546,2]
[422029404,1778494238000,-479.23700487,0.00018546,2]
[422029411,1778494238000,-3561.8280755,0.00018546,2]
[422029406,1778494238000,-500.0,0.00018546,2]
[422029408,1778494238000,-148.49751242,0.00018546,2]
[422029409,1778494238000,-500.0,0.00018546,2]
[422029410,1778494238000,-3153.5103798,0.00018546,2]
[422029413,1778494238000,-18746.48864013,0.00018546,2]
[422029412,1778494238000,-3969.2286,0.00018546,2]
[422029407,1778494238000,-351.50248758,0.00018546,2]
[422029418,1778494240000,-398731.00698099,0.00018546,2]
[422029417,1778494240000,-767.35995107,0.00018546,2]
[422029510,1778494246000,-822.17792394,0.00018546,2]
[422029511,1778494247000,-503.0,0.00018546,2]
[422029523,1778494289000,387.95,0.00012147,2]
[422029526,1778494290000,387.95,0.0001399,2]
[422029525,1778494290000,387.95,0.00013376,2]
[422029524,1778494290000,387.95,0.00012761,2]
[422029527,1778494290000,387.95,0.00014604,2]
[422029528,1778494508000,2008.888137,7.945e-05,2]
[422029529,1778494529000,4000.0,0.0002739,120]
[422029530,1778494534000,4000.0,0.0002739,120]
[422029531,1778494538000,4000.0,0.0002739,120]
[422029532,1778494550000,5532.0,0.0002739,120]
[422029540,1778495025000,480.65,9.309e-05,2]
[422029542,1778495025000,480.65,0.0001025,2]
[422029541,1778495025000,480.65,9.78e-05,2]
[422029546,1778495026000,480.65,0.00012133,2]
[422029545,1778495026000,480.65,0.00011663,2]
[422029544,1778495026000,480.65,0.00011192,2]
[422029543,1778495026000,480.65,0.00010721,2]
[422029550,1778495027000,480.65,0.00014016,2]
[422029549,1778495027000,480.65,0.00013546,2]
[422029548,1778495027000,480.65,0.00013075,2]
[422029547,1778495027000,480.65,0.00012604,2]
[422029551,1778495028000,480.65,0.00014487,2]
[422029552,1778495028000,480.65,0.00014958,2]
[422029553,1778495211000,-150.73310414,0.00015428,2]
[422029554,1778495265000,165.93,0.00014493,2]
[422029583,1778495432000,-2238.45,0.00018137,2]
[422029576,1778495432000,-763.0,0.00018063,2]
[422029574,1778495432000,-9999.99,0.00017397,2]
[422029585,1778495432000,-4538.37,0.00018169,2]
[422029587,1778495432000,-200.0,0.00018177,2]
[422029592,1778495432000,-480.65,0.00018253,2]
[422029591,1778495432000,-2343.97,0.00018245,2]
[422029601,1778495432000,-307.71477113,0.00018473,2]
[422029594,1778495432000,-150.0,0.00018317,2]
[422029593,1778495432000,-150.0,0.00018291,2]
[422029595,1778495432000,-308.7,0.0001841,2]
[422029596,1778495432000,-184.75390111,0.00018452,2]
[422029598,1778495432000,-319.73881309,0.00018473,2]
[422029571,1778495432000,-57758.15,0.00017397,2]
[422029603,1778495432000,-4455.8292755,0.00018479,2]
[422029590,1778495432000,-261.09,0.00018229,2]
[422029569,1778495432000,-166.81,0.00017397,2]
[422029579,1778495432000,-416.52,0.00018099,2]
[422029572,1778495432000,-150.99,0.00017397,2]
[422029558,1778495432000,-200.20979456,0.00015899,2]
[422029557,1778495432000,-329.91689586,0.00015428,2]
[422029559,1778495432000,-280.44020544,0.00015899,2]
[422029561,1778495432000,-308.7,0.00016438,2]
[422029562,1778495432000,-214.82098671,0.00016801,2]
[422029563,1778495432000,-480.65,0.00016841,2]
[422029564,1778495432000,-1200.0,0.0001697,2]
[422029565,1778495432000,-480.65,0.00017311,2]
[422029566,1778495432000,-150.73245608,0.00017374,2]
[422029582,1778495432000,-483.28,0.00018136,2]
[422029568,1778495432000,-433.0,0.00017396,2]
[422029602,1778495432000,-500.18331774,0.00018473,2]
[422029581,1778495432000,-1817.78,0.0001812,2]
[422029577,1778495432000,-2000.0,0.00018072,2]
[422029573,1778495432000,-704.84,0.00017397,2]
[422029575,1778495432000,-480.65,0.00017782,2]
[422029597,1778495432000,-1672.61888549,0.00018452,2]
[422029560,1778495432000,-480.65,0.0001637,2]
[422029605,1778495432000,-155.2127771,0.00018543,2]
[422029621,1778495432000,-500.0,0.0002,2]
[422029626,1778495432000,-320.0,0.00020229,2]
[422029618,1778495432000,-154.0,0.0002,2]
[422029627,1778495432000,-500.0,0.00020274,2]
[422029623,1778495432000,-272.0,0.00020019,2]
[422029628,1778495432000,-3561.8280755,0.00020293,2]
[422029630,1778495432000,-447.73190005,0.00020327,2]
[422029632,1778495432000,-201.75301911,0.00020359,2]
[422029633,1778495432000,-2057.35300677,0.00020367,2]
[422029634,1778495432000,-308.7,0.00020381,2]
[422029635,1778495432000,-500.0,0.00020392,2]
[422029636,1778495432000,-500.0,0.00020392,2]
[422029637,1778495432000,-500.0,0.00020392,2]
[422029638,1778495432000,-478.84854485,0.00020392,2]
[422029606,1778495432000,-483.28,0.00018589,2]
[422029622,1778495432000,-167.1640038,0.0002,2]
[422029624,1778495432000,-150.0,0.00020085,21]
[422029631,1778495432000,-2000.0,0.00020331,2]
[422029620,1778495432000,-159.0,0.0002,2]
[422029599,1778495432000,-500.0,0.00018473,2]
[422029600,1778495432000,-500.0,0.00018473,2]
[422029604,1778495432000,-34697.3328127,0.00018479,2]
[422029607,1778495432000,-532.0,0.00018628,2]
[422029608,1778495432000,-152.77,0.00018732,2]